[Event "85th Armenian Mens-ch 2024"]
[Site "Yerevan"]
[Date "2024.11.28"]
[Round "4.1"]
[White "Sargsyan, Sargis Vach."]
[Black "Gasparyan, Erik R."]
[Result "1/2-1/2"]
[ECO "D37"]
[WhiteElo "2321"]
[BlackElo "2371"]
[Annotator "TA"]
[PlyCount "86"]
[EventDate "2024.11.24"]
[EventCountry "ARM"]
[SourceTitle "playchess.com"]
[Source "ChessBase"]
[SourceQuality "1"]
[TimeControl "40/5400+30:1800+30"]

{[%evp 18,86,18,12,53,35,56,62,59,43,45,50,59,53,51,54,30,56,47,35,41,50,43,48,45,52,52,37,33,39,47,46,41,31,16,33,19,27,38,18,16,0,0,0,0,0,0,0,0,0,0,0,0,0,0,0,0,0,0,0,0,0,0,0,0,0,0,0,0,0,0]} 1. d4 {[%emt 0:02:50]} Nf6 {[%emt 0:00:05]} 2. c4 {[%emt 0:00:21]} e6 {[%emt 0:00:04]} 3. Nf3 {[%emt 0:00:12]} d5 {[%emt 0:00:06]} 4. Nc3 {[%emt 0:00:20]} Be7 {[%emt 0:00:05]} 5. Bf4 {[%emt 0:00:06]} O-O {[%emt 0:00:04]} 6. e3 {[%emt 0:00:19]} c5 {[%emt 0:00:07]} 7. dxc5 {[%emt 0:00:06]} Bxc5 {[%emt 0:00:06]} 8. Qc2 {[%emt 0:00:07]} Nc6 {[%emt 0:00:03]} 9. Rd1 {[%emt 0:00:04]} Qa5 {[%emt 0:00:04]} 10. a3 {[%emt 0:00:03]} h6 {[%emt 0:00:03]} 11. Nd2 {[%emt 0:00:34]} d4 {[%emt 0:00:09]} 12. Nb3 $1 {[%emt 0:00:28][%csl LRa5,LRd4]} Qb6 {[%emt 0:00:04]} 13. Nxc5 {[%emt 0:00:16]} Qxc5 {[%emt 0:00:09]} 14. b4 {[%emt 0:00:10]} Qe7 $1 {[%emt 0:00:03]} 15. exd4 {[%emt 0:00:10]} a5 {[%emt 0:00:03]} 16. c5 {[%emt 0:00:22]} axb4 {[%emt 0:00:35]} 17. axb4 {[%emt 0:02:56]} Nd5 {[%emt 0:00:15]} 18. Bd6 {[%emt 0:00:17]} Qf6 {[%emt 0:00:04]} 19. Qd2 {[%emt 0:00:32]} ({Don't play} 19. Nxd5 $6 exd5 20. Bxf8 Bg4 $16) 19... Nxc3 {[%emt 0:00:04]} 20. Qxc3 {[%emt 0:00:31]} Ra2 {[%emt 0:00:05][%csl Ga2][%cal Rf6f2]} 21. Be2 {[%emt 0:12:32]} Re8 $1 {[%emt 0:00:06]} 22. Be5 {[%emt 0:20:22] This pair of bishops is nice.} Qf5 {[%emt 0:00:07]} 23. Bf3 {[%emt 0:01:33]} Bd7 {[%emt 0:00:10] ...Nxe5 is the strong threat.} 24. O-O {[%emt 0:01:41]} Rea8 {[%emt 0:00:01]} 25. Qe1 {[%emt 0:01:25]} Nxe5 $1 {[%emt 0:11:40]} 26. Qxe5 {[%emt 0:00:28]} Qxe5 {[%emt 0:00:04]} 27. dxe5 {[%emt 0:00:05]} Bc6 {[%emt 0:00:02]} 28. Bxc6 {[%emt 0:06:36]} bxc6 $14 {[%emt 0:00:04][%mdl 4096] Endgame KRR-KRR. White is a pawn up.} 29. g3 {[%emt 0:00:22]} Rb8 {[%emt 0:01:01]} 30. Rd4 {[%emt 0:00:21]} Rb2 {[%emt 0:01:40]} 31. Ra1 {[%emt 0:00:38]} R2xb4 {[%emt 0:01:38]} 32. Rxb4 {[%emt 0:00:47]} Rxb4 $11 {[%emt 0:00:04] KR-KR} 33. Ra6 {[%emt 0:00:16]} Re4 {[%emt 0:01:06]} 34. f4 {[%emt 0:00:12][%cal Og1f2]} g5 {[%emt 0:00:04]} 35. Rxc6 {[%emt 0:08:19] Rc8+ is the strong threat.} gxf4 {[%emt 0:00:04]} 36. Rc8+ {[%emt 0:00:07]} Kg7 {[%emt 0:00:04]} 37. gxf4 {[%emt 0:00:03]} Rxf4 {[%emt 0:04:38]} 38. c6 {[%emt 0:00:09]} Rc4 {[%emt 0:00:04]} 39. c7 {[%emt 0:00:20]} Rc2 {[%emt 0:00:03]} 40. h4 {[%emt 0:00:00]} Kh7 {[%emt 0:00:00]} 41. Kf1 {[%emt 0:00:15]} Kg7 {[%emt 0:00:14]} 42. Ke1 {[%emt 0:00:04]} Rc5 {[%emt 0:00:05]} 43. Kf2 {[%emt 0:00:34]} Rc3 {[%emt 0:01:30]} 1/2-1/2

[Event "85th Armenian Mens-ch 2024"]
[Site "Yerevan"]
[Date "2024.11.28"]
[Round "4.2"]
[White "Gharibyan, Mamikon"]
[Black "Piliposyan, Robert"]
[Result "1-0"]
[ECO "B30"]
[WhiteElo "2462"]
[BlackElo "2418"]
[Annotator "TA"]
[PlyCount "121"]
[EventDate "2024.11.24"]
[EventCountry "ARM"]
[SourceTitle "playchess.com"]
[Source "ChessBase"]
[SourceQuality "1"]
[TimeControl "40/5400+30:1800+30"]

{[%evp 30,121,26,37,37,40,30,20,77,73,81,75,123,108,110,100,101,67,75,88,111,70,147,129,230,230,472,243,223,239,242,238,231,190,253,246,243,225,260,117,120,128,137,129,130,83,321,321,282,270,327,324,330,330,337,275,323,316,364,350,320,318,381,374,351,375,458,459,800,812,756,723,908,841,822,743,2095,1601,2064,1712,2076,2095,2097,2045,1889,1806,2086,2091,1497,1352,1198,958,29961,12851]} 1. e4 {[%emt 0:00:06]} c5 {[%emt 0:00:14]} 2. Nf3 {[%emt 0:00:32]} Nc6 {[%emt 0:00:15]} 3. Bc4 {[%emt 0:05:09]} e6 {[%emt 0:01:56]} 4. O-O {[%emt 0:01:02]} d5 {[%emt 0:16:02]} 5. Bb5 {[%emt 0:00:58]} dxe4 {[%emt 0:00:37]} 6. Ne5 {[%emt 0:00:15] B30: Sicilian: 2...Nc6 3 Bb5, lines without ...g6.} Qc7 {[%emt 0:04:57]} 7. Nxc6 {[%emt 0:01:45]} bxc6 {[%emt 0:01:19]} 8. Bc4 {[%emt 0:00:07]} Bd6 {[%emt 0:00:34]} 9. h3 {[%emt 0:05:26]} Nf6 {[%emt 0:11:37]} 10. Nc3 {[%emt 0:01:41]} e5 $146 {[%emt 0:05:23]} ({Predecessor:} 10... Bh2+ 11. Kh1 Be5 12. Qe2 Bxc3 13. dxc3 h5 14. Kg1 Qe5 15. Qe3 a5 16. Qf4 Qxf4 17. Bxf4 {0-1 Salonen,A (2187)-Kukushkin,I (2033) Heart of Finland op 32nd 2024 (5)}) 11. f3 {[%emt 0:00:55]} exf3 {[%emt 0:04:05]} 12. Qxf3 {[%emt 0:00:06]} O-O {[%emt 0:04:27]} 13. d3 {[%emt 0:00:06]} Be6 {[%emt 0:00:49]} 14. Bxe6 {[%emt 0:02:18]} fxe6 {[%emt 0:00:11]} 15. Bg5 {[%emt 0:24:36]} Qb6 {[%emt 0:08:00]} 16. Bxf6 {[%emt 0:07:00]} Rxf6 {[%emt 0:02:46]} 17. Qg4 {[%emt 0:01:56]} Rg6 {[%emt 0:17:47]} 18. Qc4 {[%emt 0:03:12]} Qb4 {[%emt 0:03:36]} (18... Be7 $11 {keeps the balance.}) 19. b3 $16 {[%emt 0:07:31]} Be7 {[%emt 0:06:21]} (19... Qxc4 20. bxc4 Bc7 21. Rab1 $18 (21. Ne4 Rb8 $14)) 20. Ne4 {[%emt 0:01:03]} a5 {[%emt 0:02:16]} (20... Rd8 $142) 21. a3 {[%emt 0:03:06]} Qb6 {[%emt 0:01:03]} 22. Rf3 {[%emt 0:04:50]} Qd8 {[%emt 0:01:49]} 23. Raf1 {[%emt 0:04:16]} (23. Nxc5 Qb6 (23... Bxc5+ 24. Qxc5 Qd4+ 25. Qxd4 $16) 24. d4 Rd8 25. Nxe6 Rd5 $17) 23... Qd4+ {[%emt 0:00:04]} 24. Kh2 {[%emt 0:01:58]} h5 {[%emt 0:01:47]} 25. Rf7 {[%emt 0:04:57]} Bg5 {[%emt 0:01:24]} (25... Ra7 $14) 26. Rc7 $16 {[%emt 0:06:04]} (26. Nxc5 Qxc4 27. bxc4 (27. dxc4 Bf4+ 28. R1xf4 exf4 $19) 27... Bf4+ 28. R1xf4 exf4 29. Rxf4 Rg5 30. Nxe6 Re5 $17) 26... Bf4+ {[%emt 0:00:36]} (26... a4 $16) 27. g3 $18 {[%emt 0:08:14]} Rxg3 $2 {[%emt 0:01:48]} (27... Be3 28. Qxd4 (28. Rxc6 h4 $18) 28... exd4 29. Nxc5 (29. Rxc6 h4 $18) 29... e5) 28. Nxg3 {[%emt 0:00:31]} (28. Qxe6+ $142 Kh8 29. Nxg3) 28... Qd6 $18 {[%emt 0:01:23]} 29. Rb7 {[%emt 0:02:55]} h4 {[%emt 0:00:03] [#]} 30. Rxf4 $1 {[%emt 0:00:40]} hxg3+ {[%emt 0:00:04]} 31. Kxg3 {[%emt 0:00:03]} exf4+ {[%emt 0:00:04]} 32. Qxf4 {[%emt 0:00:03]} Qxf4+ {[%emt 0:01:25]} 33. Kxf4 {[%emt 0:00:04]} a4 {[%emt 0:00:00]} 34. b4 {[%emt 0:01:56]} (34. Ke5 $18 {and the rest is easy.}) 34... cxb4 $16 {[%emt 0:00:17]} 35. Rxb4 {[%emt 0:00:04]} Ra5 {[%emt 0:01:08]} 36. Rc4 {[%emt 0:00:21]} Kf7 {[%emt 0:01:10]} 37. Rxc6 {[%emt 0:00:26]} (37. h4 $142) 37... Kf6 $2 {[%emt 0:00:25] [#]} (37... Rf5+ $16 38. Ke3 Rh5) 38. Rc4 $1 $18 {[%emt 0:01:14]} Rh5 {[%emt 0:00:49]} 39. Kg3 {[%emt 0:00:27]} (39. Rxa4 $2 {perishes.} Rh4+ (39... Rxh3 40. Ra8 $16) 40. Kf3 Rxa4 $19) 39... Rg5+ {[%emt 0:00:29]} 40. Kf3 {[%emt 0:00:00]} Ra5 {[%emt 0:00:00]} 41. h4 {[%emt 0:02:07]} Ke5 {[%emt 0:09:00]} 42. Ke3 {[%emt 0:03:01]} Kd6 {[%emt 0:10:25]} 43. Kd2 {[%emt 0:02:37]} Ra7 {[%emt 0:05:21]} 44. Kc3 {[%emt 0:02:21]} e5 {[%emt 0:00:35]} 45. Rg4 {[%emt 0:05:18]} Rc7+ {[%emt 0:02:23]} 46. Kd2 {[%emt 0:01:05]} Ra7 {[%emt 0:00:23]} 47. Ke3 {[%emt 0:00:51]} Rc7 {[%emt 0:00:47]} 48. c4 {[%emt 0:09:25]} ({Less strong is} 48. Rxa4 Rxc2 49. Rb4 Ra2 $11) 48... Rb7 {[%emt 0:00:39]} (48... Rf7 $142 49. Rg6+ Kc5) 49. Rg6+ $18 {[%emt 0:00:51]} Kc5 {[%emt 0:00:04]} 50. Re6 {[%emt 0:03:15]} Rb3 {[%emt 0:00:11]} 51. Rxe5+ {[%emt 0:00:07]} Kc6 {[%emt 0:00:28]} 52. Kd4 {[%emt 0:00:33]} Rxa3 {[%emt 0:00:05]} 53. Rg5 {[%emt 0:00:56]} Rb3 {[%emt 0:00:36]} 54. Rg6+ {[%emt 0:00:39]} Kb7 {[%emt 0:00:03]} 55. Rxg7+ {[%emt 0:00:44]} Ka6 {[%emt 0:00:11]} 56. Rg8 {[%emt 0:00:37]} Kb7 {[%emt 0:00:33]} 57. Rg5 {[%emt 0:01:01]} Ka6 {[%emt 0:00:06]} 58. Rb5 {[%emt 0:00:58]} Ra3 {[%emt 0:00:54]} 59. h5 {[%emt 0:00:26]} Ra1 {[%emt 0:00:04]} 60. Rb8 {[%emt 0:02:06]} Ka5 {[%emt 0:01:49]} 61. Kc5 {[%emt 0:00:24]} 1-0

[Event "85th Armenian Mens-ch 2024"]
[Site "Yerevan"]
[Date "2024.11.28"]
[Round "4.3"]
[White "Davtyan, Arsen"]
[Black "Hakobyan, Erik"]
[Result "1-0"]
[ECO "D85"]
[WhiteElo "2400"]
[BlackElo "2409"]
[Annotator "TA"]
[PlyCount "79"]
[EventDate "2024.11.24"]
[EventCountry "ARM"]
[SourceTitle "playchess.com"]
[Source "ChessBase"]
[SourceQuality "1"]
[TimeControl "40/5400+30:1800+30"]

{[%evp 9,79,13,37,30,16,19,25,14,12,12,15,10,12,10,38,25,24,8,7,9,13,16,7,8,4,0,4,4,11,-16,-14,-18,-10,-15,-9,-52,-52,-31,9,14,87,87,83,0,200,127,158,156,161,145,154,154,154,154,153,137,186,172,394,394,389,389,379,371,2083,613,6397,6397,6397,6397,6397,6394]} 1. d4 {[%emt 0:00:04]} Nf6 {[%emt 0:00:44][%cal Bg8f6,Bf6d5,Bd5c3][%mdl 32]} 2. c4 {[%emt 0:00:06]} g6 {[%emt 0:02:51]} 3. Nc3 {[%emt 0:01:00]} d5 {[%emt 0:00:10]} 4. cxd5 {[%emt 0:09:09]} Nxd5 {[%emt 0:00:13]} 5. Bd2 {[%emt 0:00:03][%cal Bc1d2,Bd2c3,Bc3d4,Bd4e3][%mdl 32]} c5 {[%emt 0:00:07]} 6. e4 {[%emt 0:06:43]} Nxc3 {[%emt 0:00:13]} 7. Bxc3 {[%emt 0:00:04]} cxd4 {[%emt 0:00:04]} 8. Qxd4 {[%emt 0:06:14] White has an edge.} (8. Bxd4 {with more complications.} e5 9. Bxe5 Bb4+ 10. Bc3) 8... Qxd4 {[%emt 0:02:37]} 9. Bxd4 {[%emt 0:00:04]} f6 {[%emt 0:00:05][%cal Bf7f6,Bf6f5,Bf5e4][%mdl 32]} 10. Bc4 {[%emt 0:17:47]} Nc6 {[%emt 0:04:09]} 11. Be3 {[%emt 0:04:25]} f5 {[%emt 0:27:38]} 12. Nf3 {[%emt 0:24:21]} Bg7 {[%emt 0:05:33]} 13. O-O-O {[%emt 0:05:51]} fxe4 {[%emt 0:09:15]} 14. Ng5 {[%emt 0:00:04]} Bg4 {[%emt 0:01:19]} 15. Rd2 {[%emt 0:02:46][%cal Oh2h3][%mdl 1024] White has compensation.} Ne5 {[%emt 0:08:53]} 16. Bd5 {[%emt 0:10:47][%cal Oc1b1]} O-O-O {[%emt 0:05:13]} 17. Kb1 {[%emt 0:03:39][%cal Oh2h3]} (17. Bxe4 Rxd2 18. Bxd2 Nc4 $18) 17... Kb8 {[%emt 0:07:20]} 18. h3 {[%emt 0:01:59]} Bf5 {[%emt 0:04:27] Threatens to win with ...Bf6.} 19. g4 {[%emt 0:00:01]} Bc8 {[%emt 0:02:59]} (19... Nd3 $2 20. Bb3 Bd7 21. Rhd1 $16 (21. Nxe4 Bc6 $11) (21. Nf7 Rdf8 $16)) 20. Rhd1 {[%emt 0:00:08][%cal Oe3f4]} (20. Bxe4 Rxd2 21. Bxd2 h6 $17) (20. Nxe4 h5 21. Ng3 hxg4 22. hxg4 Nxg4 (22... Rxh1+ 23. Bxh1 Rxd2 24. Bxd2 $15) 23. Rxh8 Rxh8 24. Bf4+ e5 $17) 20... h6 {[%emt 0:02:59]} 21. Nxe4 {[%emt 0:00:37]} (21. Bxe4 $2 Rxd2 22. Bxd2 hxg5 $19) 21... h5 {[%emt 0:00:05]} 22. Ng5 {[%emt 0:03:46]} hxg4 {[%emt 0:05:48]} 23. Bf4 {[%emt 0:00:10]} (23. hxg4 Bxg4 24. f3 Bf5+ 25. Ka1 Rh4 $17) 23... Bf5+ {[%emt 0:02:33]} 24. Ka1 {[%emt 0:00:16] And now Nf7 would win.} Rd6 {[%emt 0:01:53]} (24... gxh3 $2 25. Nf7 Ka8 (25... Rxd5 $2 26. Rxd5 Rc8 27. Nxe5 $18) 26. Nxd8 (26. Nxe5 Rc8 $16) (26. Bxe5 Bxe5 27. Nxd8 Rxd8 $18) 26... Rxd8 27. Bxb7+ Kxb7 28. Rxd8 $18) (24... e6 $1 $11 {remains equal.} 25. hxg4 (25. Bxe6 Rxd2 26. Rxd2 gxh3 $17) (25. Nxe6 Bxe6 26. Bxe6 Rxd2 $17) 25... Bxg4 26. Nxe6 (26. Bxe6 $2 Rxd2 27. Bxg4 Rxd1+ 28. Bxd1 Rh1 $19) 26... Bxe6 27. Bxe6 Rxd2 28. Bxd2 Nd3) 25. hxg4 $16 {[%emt 0:00:50]} Bxg4 {[%emt 0:00:38] [#]} 26. Re1 {[%emt 0:00:57]} (26. f3 $1 $16 {[%cal Rf3g4]} Bf5 27. Nf7 Nxf7 28. Bxf7) 26... Ka8 $2 {[%emt 0:03:46]} 27. a3 {[%emt 0:02:09]} (27. Rxe5 $2 Bxe5 (27... Rxd5 28. Rexd5 Rh1+ 29. Rd1 $17) 28. Bxe5 Rxd5 29. Bxh8 Rxd2 $19) 27... Rhd8 {[%emt 0:01:01]} 28. Bxe5 {[%emt 0:00:00]} Bxe5 {[%emt 0:01:21]} (28... Rxd5 29. Rxd5 Rxd5 30. Bxg7) 29. Rxe5 {[%emt 0:00:00]} e6 {[%emt 0:01:06] [#]} 30. Bxe6 {[%emt 0:00:50] aiming for Rxd6.} (30. Nxe6 Bxe6 31. Rxe6 Rxe6 32. Bxb7+ Kxb7) 30... Rxd2 {[%emt 0:00:00]} 31. Bxg4 {[%emt 0:00:02]} Rxf2 {[%emt 0:00:00]} 32. Bf3 {[%emt 0:00:43]} Rfd2 {[%emt 0:00:00]} (32... a6 $16 {was worth a try.}) 33. Ne6 {[%emt 0:00:45]} Rg8 {[%emt 0:01:28]} (33... Rc8 34. Rb5 Rc1+ 35. Ka2 Rd7) 34. Rb5 $18 {[%emt 0:00:18]} Rd7 {[%emt 0:00:27]} 35. Nc5 {[%emt 0:00:13][%csl LRb7,LRd7]} a6 {[%emt 0:00:04]} 36. Rb6 {[%emt 0:00:30]} (36. Rxb7 Rxb7 37. Bxb7+ Ka7 $11) (36. Bxb7+ Ka7 37. Rb4 (37. Nxa6 $2 {perishes.} Rxb7 38. Ra5 Kb6 $19) (37. Bxa6 Rc7 $18) 37... Rc7 $18) (36. Nxa6 Re7 37. Nc5 Rgg7 $18) 36... Rdd8 {[%emt 0:00:58]} (36... Re7 37. Bxb7+ (37. Rxb7 Rxb7 38. Bxb7+ Ka7 $16) 37... Rxb7 38. Rxb7 Rc8) 37. Bxb7+ {[%emt 0:00:30]} (37. Rxb7 $142 Rdf8 38. Be4 (38. Rf7+ Kb8 $18) 38... Rf1+ 39. Ka2) 37... Ka7 {[%emt 0:00:05]} 38. Rxa6+ {[%emt 0:00:06]} Kb8 {[%emt 0:00:02]} 39. Ra8+ {[%emt 0:00:24]} Kc7 {[%emt 0:00:04]} 40. Ne6+ {[%emt 0:00:00] Weighted Error Value: White=0.34/Black=0.28 (precise) .  Loses game:     	---       	Black=1      Mistake:       	White=2     	Black=4      Inaccurate:     	White=3     	Black=3      OK:         	White=12    	Black=14     Best:        	White=4     	Black=3} 1-0

[Event "85th Armenian Mens-ch 2024"]
[Site "Yerevan"]
[Date "2024.11.28"]
[Round "4.4"]
[White "Agasarov, Benik"]
[Black "Sukiasyan, Vahe A."]
[Result "1-0"]
[ECO "B30"]
[WhiteElo "2410"]
[BlackElo "2368"]
[Annotator "TA"]
[PlyCount "45"]
[EventDate "2024.11.24"]
[EventCountry "ARM"]
[SourceTitle "playchess.com"]
[Source "ChessBase"]
[SourceQuality "1"]
[TimeControl "40/5400+30:1800+30"]

{[%evp 9,45,8,60,68,61,15,29,19,25,16,18,0,96,90,179,180,287,274,510,435,878,886,879,865,1112,1105,1128,1082,1127,1125,1336,1291,1275,1283,1222,1165,1479,1440]} 1. e4 {[%emt 0:01:24]} c5 {[%emt 0:00:39]} 2. Nf3 {[%emt 0:00:06]} Nc6 {[%emt 0:00:06]} 3. Bb5 {[%emt 0:00:04]} e6 {[%emt 0:00:08]} 4. O-O {[%emt 0:00:05]} Nge7 {[%emt 0:00:03]} 5. Re1 {[%emt 0:00:05]} b6 {[%emt 0:00:08]} (5... a6 $11 6. Bf1 b6) 6. c3 $14 {[%emt 0:00:04][%cal Bc2c3,Bc3c4][%mdl 32]} a6 {[%emt 0:02:05]} 7. Bxc6 {[%emt 0:00:06]} (7. Ba4 $14) 7... Nxc6 $11 {[%emt 0:00:12]} 8. d4 {[%emt 0:00:05][%cal Bd2d4,Bd4d5][%mdl 32] White has an edge.} d5 {[%emt 0:00:15]} 9. exd5 {[%emt 0:00:04]} Qxd5 {[%emt 0:00:04]} 10. c4 {[%emt 0:00:04]} Qf5 {[%emt 0:26:55]} (10... Qxc4 $11 11. b3 Qd5) 11. Nc3 $16 {[%emt 0:09:49][%cal Bb1c3,Bc3e4,Be4g3][%mdl 32] Strongly threatening Nd5.} Be7 {[%emt 0:08:37]} (11... Nxd4 $16 12. Nxd4 cxd4) 12. d5 $18 {[%emt 0:00:55]} Nb4 {[%emt 0:01:05] [#]} (12... Nd4 $142) 13. Ne4 $1 {[%emt 0:00:55]} a5 $2 {[%emt 0:15:37]} (13... exd5 $2 {too greedy.} 14. Nd6+ Kf8 15. Nxf5 $18) (13... Bb7 {might work better.} 14. Bg5 Bxd5 (14... exd5 $2 15. Nd6+ Kd7 16. Nxf5 $18)) 14. a3 {[%emt 0:00:14] White is clearly winning.} Na6 {[%emt 0:00:03]} (14... exd5 $2 {loses.} 15. Nd6+ Kf8 16. Nxf5) (14... Nd3 $142 15. Qxd3 O-O) 15. d6 {[%emt 0:00:08]} Bf8 {[%emt 0:00:01]} 16. Ng3 {[%emt 0:01:22]} Qf6 {[%emt 0:00:03]} 17. Bg5 {[%emt 0:00:13]} Qxb2 {[%emt 0:00:09]} 18. Ne5 {[%emt 0:05:09] Threatening mate with d7+.} Nb8 {[%emt 0:00:07]} 19. Qf3 {[%emt 0:04:15][%csl LRa8,LRf7]} Ra7 {[%emt 0:00:03] [#]} 20. d7+ $1 {[%emt 0:00:04][%mdl 512]} Rxd7 {[%emt 0:00:04]} 21. Nxd7 {[%emt 0:00:03]} Bxd7 {[%emt 0:00:05]} 22. Rab1 {[%emt 0:00:19]} Qd4 {[%emt 0:03:12]} 23. Rxb6 {[%emt 0:00:15] Weighted Error Value: White=0.14 (very precise) /Black=0.92.  Mistake:       	White=1     	Black=5      OK:         	White=3     	Black=3      Best:        	White=1     	---        Strong:       	White=1     	---} 1-0

[Event "85th Armenian Mens-ch 2024"]
[Site "Yerevan"]
[Date "2024.11.28"]
[Round "4.5"]
[White "Babujian, Levon"]
[Black "Pogosyan, Stefan"]
[Result "1-0"]
[ECO "C96"]
[WhiteElo "2330"]
[BlackElo "2407"]
[Annotator "RC"]
[PlyCount "91"]
[EventDate "2024.11.24"]
[EventCountry "ARM"]
[SourceTitle "playchess.com"]
[Source "ChessBase"]
[SourceQuality "1"]
[TimeControl "40/5400+30:1800+30"]

1. e4 {[%emt 0:00:01]} e5 {[%emt 0:08:19]} 2. Nf3 {[%emt 0:00:14]} Nc6 {[%emt 0:00:06]} 3. Bb5 {[%emt 0:00:30]} a6 {[%emt 0:00:07]} 4. Ba4 {[%emt 0:00:33]} Nf6 {[%emt 0:00:08]} 5. O-O {[%emt 0:00:06]} Be7 {[%emt 0:08:05]} 6. Re1 {[%emt 0:00:18]} b5 {[%emt 0:00:06]} 7. Bb3 {[%emt 0:00:06]} d6 {[%emt 0:00:44]} 8. c3 {[%emt 0:00:08]} O-O {[%emt 0:00:15]} 9. h3 {[%emt 0:00:02]} Na5 {[%emt 0:01:30]} 10. Bc2 {[%emt 0:00:06]} c5 {[%emt 0:00:05]} 11. d4 {[%emt 0:00:03]} Qc7 {[%emt 0:10:26]} 12. Nbd2 {[%emt 0:00:22]} exd4 {[%emt 0:04:30]} 13. cxd4 {[%emt 0:00:47]} Bb7 {[%emt 0:01:38]} 14. d5 {[%emt 0:01:36]} Nd7 {[%emt 0:01:06]} 15. Nf1 {[%emt 0:02:30]} Bf6 {[%emt 0:00:46]} 16. Ng3 {[%emt 0:00:05]} g6 {[%emt 0:07:52]} 17. Nh2 {[%emt 0:04:21]} Nc4 {[%emt 0:15:04]} 18. Rb1 {[%emt 0:01:33]} Bg7 {[%emt 0:06:23]} 19. b3 {[%emt 0:02:29]} Ncb6 {[%emt 0:02:08]} 20. h4 {[%emt 0:06:08]} h5 {[%emt 0:08:49]} 21. Nf3 {[%emt 0:15:22]} Nf6 {[%emt 0:03:02]} 22. Ng5 {[%emt 0:00:20]} Rae8 {[%emt 0:05:07]} 23. Bb2 {[%emt 0:04:57]} Nbd7 {[%emt 0:01:47]} 24. Qd2 {[%emt 0:00:17]} Re7 {[%emt 0:00:33]} 25. Bd3 {[%emt 0:04:23]} Rfe8 {[%emt 0:01:51]} 26. Rbc1 {[%emt 0:00:07]} Ne5 {[%emt 0:00:41]} 27. Be2 {[%emt 0:00:21]} Qb6 {[%emt 0:01:00]} 28. b4 {[%emt 0:07:59]} cxb4 {[%emt 0:02:14]} 29. Qxb4 {[%emt 0:00:22]} Nfg4 {[%emt 0:00:31]} 30. Bd4 {[%emt 0:04:51]} Nd3 {[%emt 0:01:40]} 31. Bxb6 {[%emt 0:00:05]} Nxb4 {[%emt 0:00:05]} 32. Ba5 {[%emt 0:00:03]} Bd4 {[%emt 0:05:09]} 33. Nh3 {[%emt 0:26:03]} Bc5 {[%emt 0:03:54]} 34. a3 {[%emt 0:00:04]} Nxd5 {[%emt 0:00:18]} 35. exd5 {[%emt 0:00:04]} Bxa3 {[%emt 0:00:32]} 36. Rcd1 {[%emt 0:02:10]} Nf6 {[%emt 0:01:16]} 37. Nf4 {[%emt 0:01:50]} Bb2 {[%emt 0:00:28]} 38. Nd3 {[%emt 0:04:33]} Be5 {[%emt 0:00:39]} 39. Nxe5 {[%emt 0:00:15]} dxe5 {[%emt 0:00:30]} 40. Bf3 {[%emt 0:00:00]} e4 {[%emt 0:00:00]} 41. Bb4 {[%emt 0:02:35]} Rc7 {[%emt 0:02:37]} 42. Nxe4 {[%emt 0:02:06]} Nxe4 {[%emt 0:00:22]} 43. Rxe4 {[%emt 0:00:08]} Rxe4 {[%emt 0:00:11]} 44. Bxe4 {[%emt 0:00:04]} Rc4 {[%emt 0:00:12]} 45. d6 {[%emt 0:00:04]} Bc8 {[%emt 0:00:15]} 46. Bb7 {[%emt 0:00:09]} 1-0